[Event "Titled Tuesday Blitz May 11 2021"]
[White "Diaz Camallonga, Carles"]
[Black "Kim, Sergey"]
[WhiteFideId "22235256"]
[BlackFideId "13700570"]
[WhiteElo "2438"]
[BlackElo "2406"]
[Result "1-0"]
[Round "01"]
[TimeControl "180+1"]
[Date "2021.05.11"]
[WhiteClock "0:01:07"]
[BlackClock "0:01:23"]

1. e4 {[%clk 0:03:00]}  e5 {[%clk 0:02:59]} 2. Nf3 {[%clk 0:03:00]}  Nc6 {[%clk 0:02:59]} 3. Bb5 {[%clk 0:03:00]}  a6 {[%clk 0:02:59]} 4. Ba4 {[%clk 0:03:00]}  Nf6 {[%clk 0:02:58]} 5. d3 {[%clk 0:03:01]}  b5 {[%clk 0:02:58]} 6. Bb3 {[%clk 0:03:00]}  Bc5 {[%clk 0:02:59]} 7. Nc3 {[%clk 0:03:00]}  d6 {[%clk 0:02:59]} 8. Nd5 {[%clk 0:02:59]}  h6 {[%clk 0:02:59]} 9. c3 {[%clk 0:02:58]}  O-O {[%clk 0:02:59]} 10. O-O {[%clk 0:02:58]}  Bg4 {[%clk 0:02:57]} 11. h3 {[%clk 0:02:57]}  Bh5 {[%clk 0:02:57]} 12. Nxf6+ {[%clk 0:02:46]}  Qxf6 {[%clk 0:02:54]} 13. g4 {[%clk 0:02:39]}  Bg6 {[%clk 0:02:48]} 14. Bd5 {[%clk 0:02:39]}  Na7 {[%clk 0:02:29]} 15. g5 {[%clk 0:02:20]}  Qe7 {[%clk 0:02:28]} 16. Nh4 {[%clk 0:02:14]}  Kh7 {[%clk 0:02:19]} 17. Bxa8 {[%clk 0:02:11]}  Rxa8 {[%clk 0:02:18]} 18. Qg4 {[%clk 0:02:09]}  h5 {[%clk 0:02:12]} 19. Qg3 {[%clk 0:02:05]}  Nc6 {[%clk 0:02:10]} 20. Be3 {[%clk 0:02:03]}  Qe6 {[%clk 0:02:00]} 21. b4 {[%clk 0:01:59]}  Bb6 {[%clk 0:01:55]} 22. a4 {[%clk 0:01:56]}  bxa4 {[%clk 0:01:46]} 23. Rxa4 {[%clk 0:01:41]}  Qb3 {[%clk 0:01:45]} 24. Raa1 {[%clk 0:01:38]}  Qxc3 {[%clk 0:01:41]} 25. Bxb6 {[%clk 0:01:29]}  cxb6 {[%clk 0:01:39]} 26. Rac1 {[%clk 0:01:28]}  Qxb4 {[%clk 0:01:27]} 27. Rxc6 {[%clk 0:01:27]}  a5 {[%clk 0:01:28]} 28. f4 {[%clk 0:01:17]}  exf4 {[%clk 0:01:25]} 29. Qxf4 {[%clk 0:01:14]}  a4 {[%clk 0:01:24]} 30. Nxg6 {[%clk 0:01:12]}  fxg6 {[%clk 0:01:23]} 31. Qxd6 {[%clk 0:01:07]} 1-0


[Site "https://www.chess.com"]

[Event "Titled Tuesday Blitz May 11 2021"]
[White "DieHardCuban"]
[Black "Saraci, Nderim"]
[BlackFideId "6351921"]
[WhiteElo "2418"]
[BlackElo "2486"]
[Result "0-1"]
[Round "01"]
[TimeControl "180+1"]
[Date "2021.05.11"]
[WhiteClock "0:00:05"]
[BlackClock "0:00:17"]

1. d4 {[%clk 0:03:00]}  Nf6 {[%clk 0:02:58]} 2. c4 {[%clk 0:02:59]}  e6 {[%clk 0:02:58]} 3. Nc3 {[%clk 0:03:00]}  d5 {[%clk 0:02:58]} 4. cxd5 {[%clk 0:02:58]}  exd5 {[%clk 0:02:58]} 5. Bg5 {[%clk 0:02:57]}  c6 {[%clk 0:02:58]} 6. e3 {[%clk 0:02:57]}  Be7 {[%clk 0:02:56]} 7. Bd3 {[%clk 0:02:56]}  O-O {[%clk 0:02:54]} 8. Qc2 {[%clk 0:02:52]}  Nbd7 {[%clk 0:02:54]} 9. Nge2 {[%clk 0:02:48]}  Re8 {[%clk 0:02:53]} 10. O-O {[%clk 0:02:34]}  Nf8 {[%clk 0:02:53]} 11. h3 {[%clk 0:02:32]}  Nh5 {[%clk 0:02:53]} 12. Bxe7 {[%clk 0:02:26]}  Qxe7 {[%clk 0:02:54]} 13. Rab1 {[%clk 0:02:13]}  a5 {[%clk 0:02:51]} 14. a3 {[%clk 0:02:12]}  Nf6 {[%clk 0:02:46]} 15. b4 {[%clk 0:02:10]}  Be6 {[%clk 0:02:41]} 16. b5 {[%clk 0:02:07]}  Qxa3 {[%clk 0:02:36]} 17. Na4 {[%clk 0:01:59]}  Qd6 {[%clk 0:02:32]} 18. Nc5 {[%clk 0:01:57]}  Rab8 {[%clk 0:02:26]} 19. bxc6 {[%clk 0:01:43]}  bxc6 {[%clk 0:02:22]} 20. Qa4 {[%clk 0:01:43]}  Ra8 {[%clk 0:02:15]} 21. Rb6 {[%clk 0:01:40]}  Rec8 {[%clk 0:02:13]} 22. Ba6 {[%clk 0:01:31]}  Rc7 {[%clk 0:02:07]} 23. Bb7 {[%clk 0:01:26]}  N8d7 {[%clk 0:01:49]} 24. Rxc6 {[%clk 0:01:14]}  Rxc6 {[%clk 0:01:43]} 25. Bxc6 {[%clk 0:01:10]}  Ra7 {[%clk 0:01:36]} 26. Rb1 {[%clk 0:01:00]}  g6 {[%clk 0:01:15]} 27. Nxe6 {[%clk 0:00:57]}  fxe6 {[%clk 0:01:05]} 28. Nf4 {[%clk 0:00:57]}  Kf7 {[%clk 0:00:58]} 29. Nd3 {[%clk 0:00:51]}  Kg7 {[%clk 0:00:54]} 30. f3 {[%clk 0:00:32]}  Nb8 {[%clk 0:00:41]} 31. Bb5 {[%clk 0:00:31]}  Nbd7 {[%clk 0:00:42]} 32. Bc6 {[%clk 0:00:24]}  Qc7 {[%clk 0:00:23]} 33. Rc1 {[%clk 0:00:23]}  Nb6 {[%clk 0:00:22]} 34. Qb5 {[%clk 0:00:22]}  Nc4 {[%clk 0:00:22]} 35. Rxc4 {[%clk 0:00:18]}  dxc4 {[%clk 0:00:22]} 36. Qxc4 {[%clk 0:00:19]}  Qd6 {[%clk 0:00:21]} 37. e4 {[%clk 0:00:19]}  Rc7 {[%clk 0:00:21]} 38. d5 {[%clk 0:00:19]}  exd5 {[%clk 0:00:21]} 39. exd5 {[%clk 0:00:20]}  Nxd5 {[%clk 0:00:16]} 40. Qxd5 {[%clk 0:00:04]}  Qxc6 {[%clk 0:00:16]} 41. Qe5+ {[%clk 0:00:05]}  Kg8 {[%clk 0:00:16]} 42. Nf4 {[%clk 0:00:05]}  Qc5+ {[%clk 0:00:16]} 43. Qxc5 {[%clk 0:00:05]}  Rxc5 {[%clk 0:00:17]} 0-1


[Site "https://www.chess.com"]

[Event "Titled Tuesday Blitz May 11 2021"]
[White "Dobrov, Vladimir"]
[Black "Shuvalov, Evgenij"]
[WhiteFideId "4136594"]
[BlackFideId "4187237"]
[WhiteElo "2614"]
[BlackElo "2163"]
[Result "1-0"]
[Round "01"]
[TimeControl "180+1"]
[Date "2021.05.11"]
[WhiteClock "0:00:54"]
[BlackClock "0:00:45"]

1. d4 {[%clk 0:02:55]}  d5 {[%clk 0:02:57]} 2. c4 {[%clk 0:02:55]}  c6 {[%clk 0:02:57]} 3. Nf3 {[%clk 0:02:53]}  Nf6 {[%clk 0:02:57]} 4. Nbd2 {[%clk 0:02:47]}  Bf5 {[%clk 0:02:49]} 5. Nh4 {[%clk 0:02:46]}  Bc8 {[%clk 0:02:45]} 6. e3 {[%clk 0:02:46]}  e6 {[%clk 0:02:08]} 7. Bd3 {[%clk 0:02:46]}  Nbd7 {[%clk 0:02:02]} 8. O-O {[%clk 0:02:45]}  Bd6 {[%clk 0:02:01]} 9. Nhf3 {[%clk 0:02:27]}  O-O {[%clk 0:01:57]} 10. e4 {[%clk 0:02:27]}  dxe4 {[%clk 0:01:55]} 11. Nxe4 {[%clk 0:02:26]}  Nxe4 {[%clk 0:01:55]} 12. Bxe4 {[%clk 0:02:27]}  h6 {[%clk 0:01:47]} 13. Bc2 {[%clk 0:02:26]}  c5 {[%clk 0:01:35]} 14. Be3 {[%clk 0:02:00]}  Qc7 {[%clk 0:01:28]} 15. Qd3 {[%clk 0:01:54]}  Nf6 {[%clk 0:01:28]} 16. Rad1 {[%clk 0:01:47]}  Bd7 {[%clk 0:01:17]} 17. b4 {[%clk 0:01:09]}  b6 {[%clk 0:01:11]} 18. dxc5 {[%clk 0:01:06]}  bxc5 {[%clk 0:01:12]} 19. Qxd6 {[%clk 0:01:06]}  Qxd6 {[%clk 0:01:03]} 20. Rxd6 {[%clk 0:01:07]}  cxb4 {[%clk 0:01:04]} 21. Rfd1 {[%clk 0:01:06]}  Rfc8 {[%clk 0:01:00]} 22. Bb3 {[%clk 0:01:03]}  Bc6 {[%clk 0:00:59]} 23. Ne5 {[%clk 0:01:03]}  Be8 {[%clk 0:00:59]} 24. f3 {[%clk 0:01:02]}  a5 {[%clk 0:00:58]} 25. c5 {[%clk 0:00:57]}  a4 {[%clk 0:00:57]} 26. Bc4 {[%clk 0:00:57]}  Kf8 {[%clk 0:00:50]} 27. c6 {[%clk 0:00:56]}  Ke7 {[%clk 0:00:49]} 28. Bc5 {[%clk 0:00:55]}  Kf8 {[%clk 0:00:44]} 29. Bxb4 {[%clk 0:00:54]}  Kg8 {[%clk 0:00:45]} 30. a3 {[%clk 0:00:54]} 1-0


[Site "https://www.chess.com"]

[Event "Titled Tuesday Blitz May 11 2021"]
[White "Dushyant Sharma"]
[Black "Idani, Pouya"]
[WhiteFideId "25065130"]
[BlackFideId "12510130"]
[WhiteElo "2019"]
[BlackElo "2610"]
[Result "0-1"]
[Round "01"]
[TimeControl "180+1"]
[Date "2021.05.11"]
[WhiteClock "0:00:03"]
[BlackClock "0:00:51"]

1. e4 {[%clk 0:03:00]}  c5 {[%clk 0:02:58]} 2. Nf3 {[%clk 0:03:00]}  d6 {[%clk 0:02:58]} 3. d4 {[%clk 0:03:01]}  cxd4 {[%clk 0:02:59]} 4. Nxd4 {[%clk 0:03:02]}  Nf6 {[%clk 0:02:59]} 5. Nc3 {[%clk 0:03:03]}  a6 {[%clk 0:03:00]} 6. f4 {[%clk 0:03:03]}  e5 {[%clk 0:02:59]} 7. Nf3 {[%clk 0:03:03]}  Qc7 {[%clk 0:02:59]} 8. Bd3 {[%clk 0:03:04]}  Nbd7 {[%clk 0:02:58]} 9. O-O {[%clk 0:03:04]}  b5 {[%clk 0:02:58]} 10. a3 {[%clk 0:03:04]}  Be7 {[%clk 0:02:58]} 11. Kh1 {[%clk 0:03:04]}  Bb7 {[%clk 0:02:57]} 12. Qe1 {[%clk 0:03:04]}  O-O {[%clk 0:02:49]} 13. Bd2 {[%clk 0:03:04]}  Nc5 {[%clk 0:02:47]} 14. b4 {[%clk 0:02:51]}  Ne6 {[%clk 0:02:35]} 15. fxe5 {[%clk 0:02:43]}  dxe5 {[%clk 0:02:30]} 16. Nh4 {[%clk 0:02:42]}  g6 {[%clk 0:02:18]} 17. Bh6 {[%clk 0:02:08]}  Rfc8 {[%clk 0:02:04]} 18. Nf5 {[%clk 0:01:34]}  gxf5 {[%clk 0:02:01]} 19. exf5 {[%clk 0:01:35]}  Qxc3 {[%clk 0:02:01]} 20. fxe6 {[%clk 0:01:04]}  Qxe1 {[%clk 0:01:55]} 21. exf7+ {[%clk 0:01:02]}  Kxf7 {[%clk 0:01:56]} 22. Raxe1 {[%clk 0:01:03]}  Rg8 {[%clk 0:01:47]} 23. Be4 {[%clk 0:00:55]}  Bxe4 {[%clk 0:01:46]} 24. Rxe4 {[%clk 0:00:56]}  Ke6 {[%clk 0:01:44]} 25. Re2 {[%clk 0:00:52]}  Ng4 {[%clk 0:01:40]} 26. Bf4 {[%clk 0:00:37]}  Raf8 {[%clk 0:01:39]} 27. h3 {[%clk 0:00:37]}  Bg5 {[%clk 0:01:12]} 28. g3 {[%clk 0:00:29]}  Bxf4 {[%clk 0:01:00]} 29. gxf4 {[%clk 0:00:28]}  Nf6 {[%clk 0:00:56]} 30. Rxe5+ {[%clk 0:00:22]}  Kf7 {[%clk 0:00:56]} 31. a4 {[%clk 0:00:18]}  bxa4 {[%clk 0:00:56]} 32. Ra5 {[%clk 0:00:17]}  Rg3 {[%clk 0:00:56]} 33. Rxa6 {[%clk 0:00:16]}  Rfg8 {[%clk 0:00:56]} 34. Ra7+ {[%clk 0:00:15]}  Ke6 {[%clk 0:00:55]} 35. Ra6+ {[%clk 0:00:12]}  Kd5 {[%clk 0:00:52]} 36. Rd1+ {[%clk 0:00:02]}  Kc4 {[%clk 0:00:52]} 37. Rc6+ {[%clk 0:00:02]}  Kb5 {[%clk 0:00:50]} 38. Rc5+ {[%clk 0:00:02]}  Kxb4 {[%clk 0:00:51]} 39. Rd6 {[%clk 0:00:03]} 0-1


[Site "https://www.chess.com"]

[Event "Titled Tuesday Blitz May 11 2021"]
[White "Estrada Nieto, Julian"]
[Black "Jones, Gawain C B"]
[WhiteFideId "5101018"]
[BlackFideId "409561"]
[WhiteElo "2270"]
[BlackElo "2657"]
[Result "0-1"]
[Round "01"]
[TimeControl "180+1"]
[Date "2021.05.11"]
[WhiteClock "0:00:01"]
[BlackClock "0:00:28"]

1. e4 {[%clk 0:03:00]}  e5 {[%clk 0:02:56]} 2. Nf3 {[%clk 0:03:00]}  Nc6 {[%clk 0:02:56]} 3. Bb5 {[%clk 0:03:00]}  a6 {[%clk 0:02:55]} 4. Ba4 {[%clk 0:03:00]}  d6 {[%clk 0:02:55]} 5. Bxc6+ {[%clk 0:02:58]}  bxc6 {[%clk 0:02:55]} 6. d4 {[%clk 0:02:59]}  exd4 {[%clk 0:02:55]} 7. Nxd4 {[%clk 0:02:57]}  c5 {[%clk 0:02:55]} 8. Nf3 {[%clk 0:02:55]}  Bb7 {[%clk 0:02:50]} 9. Nc3 {[%clk 0:02:55]}  g6 {[%clk 0:02:49]} 10. Bg5 {[%clk 0:02:45]}  Qd7 {[%clk 0:02:48]} 11. O-O {[%clk 0:02:41]}  Bg7 {[%clk 0:02:47]} 12. Qd2 {[%clk 0:02:36]}  h6 {[%clk 0:02:45]} 13. Bf4 {[%clk 0:02:32]}  Nf6 {[%clk 0:02:43]} 14. Rfe1 {[%clk 0:02:28]}  g5 {[%clk 0:02:40]} 15. Bg3 {[%clk 0:02:27]}  Nh5 {[%clk 0:02:37]} 16. e5 {[%clk 0:01:40]}  O-O-O {[%clk 0:02:34]} 17. exd6 {[%clk 0:01:30]}  Nxg3 {[%clk 0:02:30]} 18. hxg3 {[%clk 0:01:28]}  Qxd6 {[%clk 0:02:29]} 19. Qxd6 {[%clk 0:01:20]}  cxd6 {[%clk 0:02:28]} 20. Rad1 {[%clk 0:01:01]}  Kc7 {[%clk 0:02:00]} 21. Re7+ {[%clk 0:00:42]}  Rd7 {[%clk 0:02:00]} 22. Rde1 {[%clk 0:00:32]}  Bf6 {[%clk 0:01:46]} 23. Rxd7+ {[%clk 0:00:28]}  Kxd7 {[%clk 0:01:45]} 24. Nd1 {[%clk 0:00:25]}  Re8 {[%clk 0:01:43]} 25. Rxe8 {[%clk 0:00:24]}  Kxe8 {[%clk 0:01:44]} 26. Nd2 {[%clk 0:00:21]}  Kd7 {[%clk 0:01:40]} 27. c3 {[%clk 0:00:20]}  d5 {[%clk 0:01:32]} 28. f3 {[%clk 0:00:18]}  Ke6 {[%clk 0:01:30]} 29. Kf2 {[%clk 0:00:18]}  d4 {[%clk 0:01:30]} 30. g4 {[%clk 0:00:17]}  a5 {[%clk 0:01:18]} 31. c4 {[%clk 0:00:15]}  a4 {[%clk 0:01:16]} 32. b3 {[%clk 0:00:15]}  axb3 {[%clk 0:01:10]} 33. axb3 {[%clk 0:00:15]}  Be5 {[%clk 0:00:51]} 34. Nb2 {[%clk 0:00:13]}  f5 {[%clk 0:00:49]} 35. gxf5+ {[%clk 0:00:10]}  Kxf5 {[%clk 0:00:50]} 36. Nd3 {[%clk 0:00:10]}  Bd6 {[%clk 0:00:51]} 37. g4+ {[%clk 0:00:10]}  Kg6 {[%clk 0:00:51]} 38. Ne4 {[%clk 0:00:09]}  Bxe4 {[%clk 0:00:50]} 39. fxe4 {[%clk 0:00:10]}  h5 {[%clk 0:00:50]} 40. gxh5+ {[%clk 0:00:09]}  Kxh5 {[%clk 0:00:50]} 41. Kf3 {[%clk 0:00:08]}  g4+ {[%clk 0:00:45]} 42. Kg2 {[%clk 0:00:08]}  Kg5 {[%clk 0:00:45]} 43. Nf2 {[%clk 0:00:04]}  Kf4 {[%clk 0:00:43]} 44. e5 {[%clk 0:00:03]}  Bxe5 {[%clk 0:00:29]} 45. Nd3+ {[%clk 0:00:02]}  Ke4 {[%clk 0:00:29]} 46. Nxc5+ {[%clk 0:00:03]}  Ke3 {[%clk 0:00:29]} 47. b4 {[%clk 0:00:02]}  Bd6 {[%clk 0:00:28]} 48. Na6 {[%clk 0:00:01]}  d3 {[%clk 0:00:28]} 49. c5 {[%clk 0:00:01]}  d2 {[%clk 0:00:28]} 0-1


[Site "https://www.chess.com"]

[Event "Titled Tuesday Blitz May 11 2021"]
[White "Goltsev, Dmitry"]
[Black "Schut, Lisa"]
[WhiteFideId "24176710"]
[BlackFideId "1019481"]
[WhiteElo "2366"]
[BlackElo "2234"]
[Result "1-0"]
[Round "01"]
[TimeControl "180+1"]
[Date "2021.05.11"]
[WhiteClock "0:01:37"]
[BlackClock "0:00:19"]

1. e4 {[%clk 0:02:59]}  c5 {[%clk 0:02:58]} 2. Nf3 {[%clk 0:02:59]}  d6 {[%clk 0:02:57]} 3. d4 {[%clk 0:03:00]}  cxd4 {[%clk 0:02:58]} 4. Nxd4 {[%clk 0:03:01]}  Nf6 {[%clk 0:02:58]} 5. Nc3 {[%clk 0:03:00]}  a6 {[%clk 0:02:59]} 6. Be2 {[%clk 0:02:59]}  e5 {[%clk 0:02:59]} 7. Nb3 {[%clk 0:02:58]}  Be7 {[%clk 0:03:00]} 8. Be3 {[%clk 0:02:57]}  O-O {[%clk 0:03:00]} 9. O-O {[%clk 0:02:56]}  Qc7 {[%clk 0:02:56]} 10. a4 {[%clk 0:02:54]}  Be6 {[%clk 0:02:46]} 11. f4 {[%clk 0:02:50]}  Nbd7 {[%clk 0:02:46]} 12. Qd3 {[%clk 0:02:47]}  exf4 {[%clk 0:02:36]} 13. Bxf4 {[%clk 0:02:48]}  Ne5 {[%clk 0:02:36]} 14. Qg3 {[%clk 0:02:44]}  Kh8 {[%clk 0:02:31]} 15. Rad1 {[%clk 0:02:43]}  Rad8 {[%clk 0:02:23]} 16. Nd4 {[%clk 0:02:42]}  Ng6 {[%clk 0:02:04]} 17. Be3 {[%clk 0:02:34]}  Nd7 {[%clk 0:01:22]} 18. Nf5 {[%clk 0:02:30]}  Nde5 {[%clk 0:01:20]} 19. Bd4 {[%clk 0:02:26]}  Bf6 {[%clk 0:01:03]} 20. Qe3 {[%clk 0:02:18]}  Bxf5 {[%clk 0:00:48]} 21. exf5 {[%clk 0:02:13]}  Ne7 {[%clk 0:00:47]} 22. Bb6 {[%clk 0:02:10]}  Qc8 {[%clk 0:00:44]} 23. Bxd8 {[%clk 0:02:10]}  Rxd8 {[%clk 0:00:44]} 24. Bf3 {[%clk 0:02:06]}  Nxf5 {[%clk 0:00:43]} 25. Qe4 {[%clk 0:02:01]}  Qc5+ {[%clk 0:00:42]} 26. Kh1 {[%clk 0:01:55]}  Ne3 {[%clk 0:00:42]} 27. Qxb7 {[%clk 0:01:51]}  Nxd1 {[%clk 0:00:38]} 28. Bxd1 {[%clk 0:01:50]}  d5 {[%clk 0:00:24]} 29. Qxa6 {[%clk 0:01:44]}  Rd6 {[%clk 0:00:21]} 30. Qb5 {[%clk 0:01:39]}  Qa7 {[%clk 0:00:19]} 31. Qe8# {[%clk 0:01:37]} 1-0


[Site "https://www.chess.com"]

[Event "Titled Tuesday Blitz May 11 2021"]
[White "Grandelius, Nils"]
[Black "Astafurov, Arseniy"]
[WhiteFideId "1710400"]
[BlackFideId "24175218"]
[WhiteElo "2651"]
[BlackElo "2163"]
[Result "1/2-1/2"]
[Round "01"]
[TimeControl "180+1"]
[Date "2021.05.11"]
[WhiteClock "0:00:33"]
[BlackClock "0:00:09"]

1. Nf3 {[%clk 0:03:00]}  d5 {[%clk 0:02:59]} 2. g3 {[%clk 0:03:01]}  c6 {[%clk 0:02:59]} 3. Bg2 {[%clk 0:03:01]}  Bg4 {[%clk 0:03:00]} 4. h3 {[%clk 0:03:01]}  Bh5 {[%clk 0:03:00]} 5. O-O {[%clk 0:03:01]}  Nd7 {[%clk 0:03:00]} 6. d4 {[%clk 0:03:01]}  Ngf6 {[%clk 0:03:00]} 7. c4 {[%clk 0:03:01]}  e6 {[%clk 0:03:00]} 8. cxd5 {[%clk 0:03:01]}  exd5 {[%clk 0:02:58]} 9. Ne5 {[%clk 0:03:01]}  Be7 {[%clk 0:02:43]} 10. Nc3 {[%clk 0:02:58]}  Bg6 {[%clk 0:02:19]} 11. f4 {[%clk 0:02:49]}  Be4 {[%clk 0:02:16]} 12. Nxe4 {[%clk 0:02:48]}  Nxe4 {[%clk 0:02:15]} 13. Bxe4 {[%clk 0:02:42]}  dxe4 {[%clk 0:02:15]} 14. Be3 {[%clk 0:02:39]}  O-O {[%clk 0:02:14]} 15. Qb3 {[%clk 0:02:38]}  Nb6 {[%clk 0:02:01]} 16. a4 {[%clk 0:02:29]}  Qd5 {[%clk 0:02:02]} 17. Qc2 {[%clk 0:02:29]}  a5 {[%clk 0:02:01]} 18. f5 {[%clk 0:02:20]}  f6 {[%clk 0:01:59]} 19. Ng4 {[%clk 0:02:20]}  Rfe8 {[%clk 0:01:53]} 20. b3 {[%clk 0:02:16]}  Bd6 {[%clk 0:01:44]} 21. Kg2 {[%clk 0:02:09]}  Rad8 {[%clk 0:01:42]} 22. Rad1 {[%clk 0:02:09]}  Kh8 {[%clk 0:01:40]} 23. Bf4 {[%clk 0:02:02]}  Bxf4 {[%clk 0:01:19]} 24. Rxf4 {[%clk 0:02:03]}  e3+ {[%clk 0:01:14]} 25. Rf3 {[%clk 0:02:00]}  h5 {[%clk 0:01:03]} 26. Nh2 {[%clk 0:02:00]}  Qe4 {[%clk 0:01:03]} 27. Qc5 {[%clk 0:01:46]}  Nd5 {[%clk 0:00:51]} 28. Qxa5 {[%clk 0:01:46]}  Qc2 {[%clk 0:00:52]} 29. Re1 {[%clk 0:01:27]}  Qd2 {[%clk 0:00:49]} 30. Qxd2 {[%clk 0:01:18]}  exd2 {[%clk 0:00:50]} 31. Rd1 {[%clk 0:01:18]}  Rxe2+ {[%clk 0:00:43]} 32. Kg1 {[%clk 0:01:19]}  Ne3 {[%clk 0:00:30]} 33. Rxd2 {[%clk 0:01:14]}  Rxd2 {[%clk 0:00:23]} 34. Rxe3 {[%clk 0:01:14]}  R8xd4 {[%clk 0:00:24]} 35. Nf3 {[%clk 0:01:11]}  Rd1+ {[%clk 0:00:24]} 36. Kf2 {[%clk 0:01:10]}  Kh7 {[%clk 0:00:24]} 37. Re8 {[%clk 0:01:08]}  Rb4 {[%clk 0:00:22]} 38. Nh4 {[%clk 0:01:09]}  Rxh4 {[%clk 0:00:18]} 39. gxh4 {[%clk 0:01:08]}  Rd3 {[%clk 0:00:19]} 40. Re3 {[%clk 0:01:08]}  Rd4 {[%clk 0:00:18]} 41. Kg3 {[%clk 0:01:06]}  Rb4 {[%clk 0:00:18]} 42. Rd3 {[%clk 0:00:41]}  Kg8 {[%clk 0:00:18]} 43. Rd8+ {[%clk 0:00:41]}  Kf7 {[%clk 0:00:18]} 44. Rd7+ {[%clk 0:00:42]}  Kf8 {[%clk 0:00:18]} 45. Rd8+ {[%clk 0:00:42]}  Ke7 {[%clk 0:00:19]} 46. Rd3 {[%clk 0:00:41]}  Ke8 {[%clk 0:00:17]} 47. Re3+ {[%clk 0:00:38]}  Kd7 {[%clk 0:00:18]} 48. Rd3+ {[%clk 0:00:38]}  Kc7 {[%clk 0:00:18]} 49. Re3 {[%clk 0:00:39]}  Kd6 {[%clk 0:00:19]} 50. Re6+ {[%clk 0:00:39]}  Kd5 {[%clk 0:00:19]} 51. Re7 {[%clk 0:00:40]}  Rxb3+ {[%clk 0:00:19]} 52. Kf4 {[%clk 0:00:40]}  Rb4+ {[%clk 0:00:20]} 53. Kg3 {[%clk 0:00:41]}  b6 {[%clk 0:00:18]} 54. Rxg7 {[%clk 0:00:41]}  Rxa4 {[%clk 0:00:19]} 55. Re7 {[%clk 0:00:39]}  b5 {[%clk 0:00:17]} 56. Re6 {[%clk 0:00:39]}  b4 {[%clk 0:00:17]} 57. Rxf6 {[%clk 0:00:40]}  b3 {[%clk 0:00:18]} 58. Rf8 {[%clk 0:00:40]}  Kc4 {[%clk 0:00:16]} 59. f6 {[%clk 0:00:38]}  b2 {[%clk 0:00:13]} 60. Rb8 {[%clk 0:00:37]}  Ra3+ {[%clk 0:00:14]} 61. Kg2 {[%clk 0:00:33]}  Rb3 {[%clk 0:00:15]} 62. Rxb3 {[%clk 0:00:33]}  Kxb3 {[%clk 0:00:16]} 63. f7 {[%clk 0:00:34]}  b1=Q {[%clk 0:00:16]} 64. f8=Q {[%clk 0:00:35]}  Qc2+ {[%clk 0:00:17]} 65. Kg3 {[%clk 0:00:35]}  Qd3+ {[%clk 0:00:17]} 66. Kg2 {[%clk 0:00:35]}  Qd5+ {[%clk 0:00:16]} 67. Kg3 {[%clk 0:00:34]}  c5 {[%clk 0:00:16]} 68. Qb8+ {[%clk 0:00:32]}  Kc3 {[%clk 0:00:16]} 69. Qa7 {[%clk 0:00:29]}  c4 {[%clk 0:00:14]} 70. Qa1+ {[%clk 0:00:29]}  Kb4 {[%clk 0:00:15]} 71. Qb2+ {[%clk 0:00:28]}  Kc5 {[%clk 0:00:15]} 72. Qa3+ {[%clk 0:00:29]}  Kc6 {[%clk 0:00:14]} 73. Qa8+ {[%clk 0:00:29]}  Kd6 {[%clk 0:00:15]} 74. Qd8+ {[%clk 0:00:28]}  Ke5 {[%clk 0:00:15]} 75. Qg5+ {[%clk 0:00:28]}  Kd4 {[%clk 0:00:14]} 76. Qd2+ {[%clk 0:00:29]}  Kc5 {[%clk 0:00:13]} 77. Qa5+ {[%clk 0:00:30]}  Kc6 {[%clk 0:00:14]} 78. Qa8+ {[%clk 0:00:30]}  Kd6 {[%clk 0:00:13]} 79. Qd8+ {[%clk 0:00:31]}  Kc5 {[%clk 0:00:11]} 80. Qa5+ {[%clk 0:00:31]}  Kd4 {[%clk 0:00:12]} 81. Qd2+ {[%clk 0:00:32]}  Ke4 {[%clk 0:00:09]} 82. Qe2+ {[%clk 0:00:32]}  Kd4 {[%clk 0:00:09]} 83. Qd2+ {[%clk 0:00:33]} 1/2-1/2


[Site "https://www.chess.com"]

[Event "Titled Tuesday Blitz May 11 2021"]
[White "Holt, Conrad"]
[Black "Matthiesen, Martin"]
[WhiteFideId "2034387"]
[BlackFideId "1404067"]
[WhiteElo "2586"]
[BlackElo "2337"]
[Result "1-0"]
[Round "01"]
[TimeControl "180+1"]
[Date "2021.05.11"]
[WhiteClock "0:01:40"]
[BlackClock "0:00:27"]

1. d4 {[%clk 0:02:58]}  Nf6 {[%clk 0:02:59]} 2. c4 {[%clk 0:02:58]}  e6 {[%clk 0:02:59]} 3. Nc3 {[%clk 0:02:58]}  Bb4 {[%clk 0:02:58]} 4. Qc2 {[%clk 0:02:58]}  O-O {[%clk 0:02:57]} 5. e4 {[%clk 0:02:58]}  d5 {[%clk 0:02:56]} 6. e5 {[%clk 0:02:59]}  Ne4 {[%clk 0:02:56]} 7. Bd3 {[%clk 0:02:59]}  c5 {[%clk 0:02:55]} 8. Nf3 {[%clk 0:02:59]}  cxd4 {[%clk 0:02:55]} 9. Nxd4 {[%clk 0:03:00]}  Nd7 {[%clk 0:02:55]} 10. Bf4 {[%clk 0:03:00]}  Ndc5 {[%clk 0:02:51]} 11. O-O {[%clk 0:02:59]}  Nxd3 {[%clk 0:02:33]} 12. Qxd3 {[%clk 0:02:59]}  Bxc3 {[%clk 0:02:22]} 13. bxc3 {[%clk 0:03:00]}  Bd7 {[%clk 0:02:09]} 14. cxd5 {[%clk 0:02:53]}  exd5 {[%clk 0:02:06]} 15. c4 {[%clk 0:02:53]}  Nc5 {[%clk 0:02:03]} 16. Qg3 {[%clk 0:02:53]}  Ne4 {[%clk 0:01:54]} 17. Qe3 {[%clk 0:02:53]}  Be6 {[%clk 0:01:34]} 18. Rad1 {[%clk 0:02:20]}  Qa5 {[%clk 0:01:22]} 19. Nb3 {[%clk 0:02:17]}  Qc3 {[%clk 0:00:58]} 20. cxd5 {[%clk 0:02:16]}  Qxe3 {[%clk 0:00:57]} 21. Bxe3 {[%clk 0:02:15]}  Bf5 {[%clk 0:00:57]} 22. Rc1 {[%clk 0:02:00]}  Rfc8 {[%clk 0:00:53]} 23. Nd4 {[%clk 0:01:50]}  Bg6 {[%clk 0:00:53]} 24. d6 {[%clk 0:01:47]}  a6 {[%clk 0:00:29]} 25. d7 {[%clk 0:01:42]}  Rd8 {[%clk 0:00:27]} 26. f3 {[%clk 0:01:40]} 1-0


[Site "https://www.chess.com"]